fUST/lending_fUST_20251011
["ID","MTS","AMOUNT","RATE_DAILY","PERIOD"]
[390697920,1760124648634,-151.0,0.00029258,30]
[390697922,1760124648643,-151.0,0.00029258,30]
[390697924,1760124648652,-151.0,0.00029258,30]
[390697926,1760124648662,-9135.69390941,0.0002926,2]
[390697928,1760124648671,-189.4849051,0.0002926,30]
[390697930,1760124648681,-500.0,0.00029269,5]
[390697932,1760124648690,-500.0,0.00029269,5]
[390697934,1760124648700,-500.0,0.00029269,5]
[390697936,1760124648713,-151.0,0.0002927,30]
[390697938,1760124648721,-292.0,0.0002927,30]
[390697939,1760124648734,-298.03512572,0.0002927,30]
[390697940,1760124648743,-9135.69390941,0.0002929,2]
[390697941,1760124648752,-82221.2451847,0.000293,2]
[390697942,1760124648762,-220.07126467,0.000293,12]
[390697943,1760124648771,-298.03512572,0.000293,7]
[390697944,1760124648780,-298.03512572,0.000293,10]
[390697945,1760124648790,-160.0,0.000293,10]
[390697946,1760124648799,-151.0,0.000293,30]
[390697947,1760124648808,-151.0,0.000293,30]
[390697948,1760124648817,-151.0,0.000293,30]
[390697949,1760124648826,-151.0,0.000293,30]
[390697950,1760124648835,-151.0,0.000293,30]
[390697951,1760124648844,-151.0,0.000293,30]
[390697952,1760124648852,-151.0,0.000293,30]
[390697953,1760124648861,-152.13638,0.00029309,30]
[390697954,1760124648871,-151.0,0.00029309,30]
[390697955,1760124648880,-151.0,0.00029309,30]
[390697956,1760124648889,-151.0,0.00029309,30]
[390697967,1760124649032,-151.0,0.00029309,30]
[390697969,1760124649042,-151.0,0.00029309,30]
[390697971,1760124649051,-151.0,0.00029309,30]
[390697973,1760124649060,-151.0,0.00029309,30]
[390697975,1760124649069,-151.0,0.00029309,30]
[390697977,1760124649079,-151.0,0.00029309,30]
[390697979,1760124649087,-151.0,0.00029309,30]
[390697981,1760124649097,-280.518376,0.00029309,30]
[390697983,1760124649106,-151.0,0.00029309,30]
[390697985,1760124649114,-151.0,0.00029309,30]
[390697987,1760124649123,-153.026028,0.00029309,30]
[390697989,1760124649132,-151.0,0.00029309,30]
[390697991,1760124649141,-267.79785,0.00029309,30]
[390697993,1760124649150,-151.0,0.00029309,30]
[390697995,1760124649159,-151.0,0.00029309,30]
[390697997,1760124649167,-151.0,0.00029309,30]
[390697999,1760124649176,-174.9948,0.00029309,30]
[390698001,1760124649185,-151.0,0.00029309,30]
[390698003,1760124649195,-151.0,0.00029309,30]
[390698005,1760124649204,-200.0,0.0002931,120]
[390698007,1760124649214,-151.0,0.0002931,30]
[390698009,1760124649223,-151.0,0.0002931,30]
[390698011,1760124649236,-151.0,0.0002931,30]
[390698013,1760124649246,-151.0,0.0002931,30]
[390698015,1760124649255,-151.0,0.0002931,30]
[390698017,1760124649264,-151.0,0.0002931,30]
[390698019,1760124649275,-151.0,0.0002931,30]
[390698021,1760124649284,-151.0,0.0002931,30]
[390698023,1760124649293,-151.0,0.0002931,30]
[390698025,1760124649303,-225.887205,0.0002931,30]
[390698027,1760124649312,-173.464005,0.0002931,30]
[390698028,1760124649321,-151.0,0.0002931,30]
[390698030,1760124649331,-151.0,0.0002931,30]
[390698032,1760124649341,-1000.0,0.0002931,2]
[390698034,1760124649350,-1000.0,0.0002931,2]
[390698036,1760124649360,-1000.0,0.0002931,2]
[390698038,1760124649370,-1000.0,0.0002931,2]
[390698040,1760124649381,-1000.0,0.0002931,2]
[390698042,1760124649391,-298.843734,0.0002931,30]
[390698044,1760124649401,-298.843734,0.0002931,30]
[390698046,1760124649410,-298.843734,0.0002931,30]
[390698048,1760124649420,-298.843734,0.0002931,30]
[390698050,1760124649430,-298.843734,0.0002931,30]
[390698052,1760124649440,-298.843734,0.0002931,30]
[390698054,1760124649449,-298.843734,0.0002931,30]
[390698056,1760124649460,-298.843734,0.0002931,30]
[390698058,1760124649469,-1564.290886,0.0002931,30]
[390698060,1760124649488,-1564.290886,0.0002931,30]
[390698062,1760124649499,-1564.290886,0.0002931,30]
[390698064,1760124649509,-1564.290886,0.0002931,30]
[390698066,1760124649518,-1564.290886,0.0002931,30]
[390698068,1760124649527,-1564.290886,0.0002931,30]
[390698070,1760124649537,-1564.290886,0.0002931,30]
[390698072,1760124649546,-1564.290886,0.0002931,30]
[390698074,1760124649556,-294.580257,0.0002931,30]
[390698076,1760124649565,-294.580257,0.0002931,30]
[390698078,1760124649574,-294.580257,0.0002931,30]
[390698080,1760124649583,-294.580257,0.0002931,30]
[390698082,1760124649594,-294.580257,0.0002931,30]
[390698083,1760124649603,-294.580257,0.0002931,30]
[390698085,1760124649612,-294.580257,0.0002931,30]
[390698087,1760124649622,-294.580257,0.0002931,30]
[390698089,1760124649631,-151.0,0.0002931,30]
[390698091,1760124649641,-279.768408,0.0002931,30]
[390698094,1760124649651,-151.0,0.0002931,30]
[390698096,1760124649661,-151.0,0.0002931,30]
[390698097,1760124649671,-294.687968,0.0002931,30]
[390698099,1760124649680,-161.82045969,0.0002931,2]
[390698101,1760124649690,-573860.0274,0.0002931,7]
[390698103,1760124649699,-861301.1105,0.0002931,7]
[390698105,1760124649709,-500.0,0.00029313,10]
[390698107,1760124649723,-151.0,0.00029313,10]
[390698109,1760124649738,-532.0,0.00029313,10]
[390698111,1760124649747,-151.0,0.00029313,10]
[390698113,1760124649756,-22899.53105976,0.00029313,10]
[390698115,1760124649766,-1932.36253442,0.00029345,2]
[390698117,1760124649777,-1050.27,0.00029348,2]
[390698119,1760124649787,-750.0,0.00029364,5]
[390698121,1760124649796,-151.0,0.00029368,10]
[390698123,1760124649805,-198.0,0.00029368,10]
[390698125,1760124649815,-532.0,0.00029368,10]
[390698127,1760124649824,-151.0,0.00029368,10]
[390698129,1760124649833,-378.79712498,0.00029371,60]
[390698131,1760124649842,-500.07782297,0.00029373,5]
[390698133,1760124649851,-150.64313015,0.00029373,5]
[390698135,1760124649860,-197.62601552,0.00029373,5]
[390698137,1760124649869,-501.05276528,0.00029373,5]
[390698139,1760124649878,-500.0,0.00029373,5]
[390698141,1760124649887,-500.0,0.00029373,5]
[390698143,1760124649896,-500.14619106,0.00029373,5]
[390698145,1760124649906,-548.0,0.00029385,2]
[390698147,1760124649915,-200.0,0.00029389,120]
[390698149,1760124649924,-2015.3324451,0.0002939,5]
[390698151,1760124649932,-1500.0,0.00029396,5]
[390698153,1760124649942,-2446.43,0.000294,120]
[390698155,1760124649951,-298.03512572,0.000294,3]
[390698157,1760124649960,-980.0,0.00029402,2]
[390698159,1760124649969,-663.559,0.00029402,2]
[390698161,1760124649981,-630.0,0.00029402,2]
[390698163,1760124649990,-411.0,0.00029402,2]
[390698165,1760124650000,-151.0,0.00029409,30]
[390698167,1760124650010,-266.236113,0.00029409,30]
[390698169,1760124650019,-151.0,0.00029409,30]
[390698171,1760124650028,-151.0,0.00029409,30]
[390698173,1760124650038,-164.622305,0.0002941,30]
[390698175,1760124650047,-151.0,0.0002941,30]
[390698177,1760124650056,-151.0,0.0002941,30]
[390698179,1760124650065,-151.0,0.0002941,30]
[390698181,1760124650073,-250.402368,0.0002941,30]
[390698183,1760124650082,-298.843734,0.0002941,30]
[390698185,1760124650091,-298.843734,0.0002941,30]
[390698187,1760124650100,-298.843734,0.0002941,30]
[390698189,1760124650109,-298.843737,0.0002941,30]
[390698191,1760124650118,-1564.290886,0.0002941,30]
[390698193,1760124650127,-1564.290886,0.0002941,30]
[390698195,1760124650136,-1564.290886,0.0002941,30]
[390698197,1760124650146,-1564.290878,0.0002941,30]
[390698199,1760124650155,-294.580257,0.0002941,30]
[390698200,1760124650164,-294.580257,0.0002941,30]
[390698202,1760124650173,-294.580257,0.0002941,30]
[390698204,1760124650181,-294.580249,0.0002941,30]
[390698206,1760124650192,-262.481212,0.0002941,30]
[390698208,1760124650200,-277439.34794023,0.0002941,20]
[390698212,1760124650225,-17486.5,0.0002941,20]
[390698255,1760124650640,-151.0,0.00027158,7]
[390698257,1760124650650,-151.0,0.00027158,7]
[390698259,1760124650659,-19718.13855295,0.0002941,20]
[390698261,1760124650671,-1547.48338575,0.0002941,20]
[390698263,1760124650683,-1202.55341041,0.0002941,20]
[390698266,1760124650702,-673066.44693593,0.0002941,20]
[390698269,1760124650726,-23294.06502475,0.0002941,20]
[390698272,1760124650743,-15049.3706106,0.0002941,20]
[390708970,1760125080011,308.23,0.00015135,7]
[390708971,1760125080326,160.27,0.00015135,7]
[390708973,1760125129084,1888.0,0.00028767,120]
[390708985,1760125170891,200.0,0.00028643,120]
[390708986,1760125234890,200.0,0.00027,120]
[390708987,1760125235174,200.0,0.000277,120]
[390708988,1760125235574,223.08707,0.000284,120]
[390708989,1760125290758,200.0,0.00028615,120]
[390708990,1760125350749,200.0,0.00028437,120]
[390709039,1760125832500,-150.0,0.00017808,2]
[390709041,1760125832509,-313.66376798,0.00017808,2]
[390709043,1760125832520,-186.33623202,0.00017808,2]
[390709045,1760125832530,-172.5,0.00018408,2]
[390709047,1760125832539,-195.0,0.00019008,2]
[390709049,1760125832549,-159.36317622,0.00019608,2]
[390709051,1760125832559,-467.63,0.0001969,2]
[390709053,1760125832568,-160.0,0.00020883,2]
[390709055,1760125832577,-935.25,0.0002148,2]
[390709057,1760125832587,-160.0,0.00023,2]
[390709059,1760125832596,-724.75319565,0.00023,2]
[390709061,1760125832606,-160.0,0.00023115,2]
[390709063,1760125832615,-1402.88,0.0002327,2]
[390709065,1760125832625,-1000.0,0.00023657,2]
[390709066,1760125832634,-380.0,0.00024658,2]
[390709067,1760125832644,-1870.5,0.0002506,2]
[390709068,1760125832654,-200.0,0.000251,7]
[390709069,1760125832664,-652.8809211,0.00025826,2]
[390709070,1760125832674,-2000.0,0.00026,2]
[390709071,1760125832688,-800.0,0.00026122,2]
[390709072,1760125832697,-160.0,0.00026171,2]
[390709074,1760125832707,-298.03512572,0.00026171,2]
[390709076,1760125832717,-160.0,0.00026501,3]
[390709078,1760125832727,-2338.13,0.0002685,2]
[390709080,1760125832736,-1005.7224765,0.00027123,3]
[390709081,1760125832745,-588.07192429,0.00027167,2]
[390709082,1760125832755,-800.0,0.00027218,2]
[390709083,1760125832764,-528.82,0.00027297,16]
[390709084,1760125832773,-163.34872749,0.00027297,2]
[390709085,1760125832782,-274.3713414,0.00027397,2]
[390709086,1760125832791,-500.0,0.00027397,60]
[390709087,1760125832800,-500.0,0.00027397,60]
[390709088,1760125832810,-500.0,0.00027397,60]
[390709089,1760125832819,-500.0,0.00027397,60]
[390709090,1760125832829,-500.0,0.00027397,60]
[390709092,1760125832838,-500.0,0.00027397,60]
[390709094,1760125832847,-500.0,0.00027397,60]
[390709096,1760125832857,-500.0,0.00027397,60]
[390709098,1760125832866,-500.0,0.00027397,60]
[390709100,1760125832875,-500.0,0.00027397,60]
[390709102,1760125832884,-366.4068796,0.00027397,60]
[390709106,1760125832910,-133.5931204,0.00027397,60]
[390709108,1760125832919,-500.0,0.00027397,60]
[390709110,1760125832931,-500.0,0.00027397,60]
[390709112,1760125832940,-500.0,0.00027397,2]
[390709114,1760125832950,-500.0,0.00027397,2]
[390709116,1760125832959,-173.70804231,0.00027397,2]
[390709120,1760125832988,-326.29195769,0.00027397,2]
[390709122,1760125832998,-500.0,0.00027397,2]
[390709124,1760125833007,-500.0,0.00027397,2]
[390709126,1760125833016,-500.0,0.00027397,2]
[390709128,1760125833025,-500.0,0.00027397,2]
[390709130,1760125833034,-500.0,0.00027397,2]
[390709132,1760125833043,-409.69387175,0.00027397,2]
[390709134,1760125833054,-266.34,0.00027397,49]
[390709136,1760125833067,-1000.0,0.00027397,2]
[390709137,1760125833076,-1124.48888657,0.00027397,2]
[390709140,1760125833085,-500.0,0.00027397,60]
[390709142,1760125833095,-500.0,0.00027397,60]
[390709143,1760125833106,-500.0,0.00027397,60]
[390709146,1760125833116,-383.88,0.00027397,60]
[390709148,1760125833125,-300.0,0.00027397,2]
[390709150,1760125833135,-300.0,0.00027397,2]
[390709152,1760125833144,-1000.0,0.00027397,2]
[390709154,1760125833154,-1000.0,0.00027397,2]
[390709156,1760125833163,-1000.0,0.00027397,2]
[390709158,1760125833172,-500.0,0.00027397,2]
[390709160,1760125833184,-500.0,0.00027397,2]
[390709162,1760125833194,-500.0,0.00027397,2]
[390709164,1760125833203,-500.0,0.00027397,2]
[390709166,1760125833212,-500.0,0.00027397,2]
[390709168,1760125833221,-471.12464822,0.00027397,2]
[390709170,1760125833230,-500.0,0.00027397,60]
[390709172,1760125833240,-161.41205258,0.00027397,2]
[390709174,1760125833249,-980.0,0.00027452,2]
[390709176,1760125833258,-411.0,0.00027452,2]
[390709178,1760125833268,-663.559,0.00027452,2]
[390709180,1760125833278,-630.0,0.00027452,2]
[390709182,1760125833287,-500.0,0.00027496,60]
[390709184,1760125833296,-500.0,0.00027497,2]
[390709186,1760125833305,-500.0,0.00027497,60]
[390709188,1760125833315,-500.0,0.0002768,60]
[390709190,1760125833324,-670.41383204,0.00027786,5]
[390709192,1760125833336,-329.58616796,0.00027786,5]
[390709194,1760125833345,-151.0,0.000278,2]
[390709196,1760125833354,-500.0,0.000278,2]
[390709198,1760125833363,-3000.0,0.000278,2]
[390709200,1760125833372,-2611.44225185,0.000278,2]
[390709202,1760125833381,-268.07637775,0.000278,2]
[390709204,1760125833390,-500.0,0.000278,2]
[390709206,1760125833399,-151.0,0.000278,2]
[390709208,1760125833408,-151.0,0.000278,2]
[390709210,1760125833417,-500.0,0.000278,2]
[390709212,1760125833426,-151.0,0.000278,2]
[390709214,1760125833437,-500.0,0.000278,2]
[390709216,1760125833446,-155.12006696,0.000278,2]
[390709218,1760125833455,-500.0,0.000278,2]
[390709220,1760125833464,-500.0,0.000278,2]
[390709222,1760125833473,-500.0,0.000278,2]
[390709224,1760125833481,-500.0,0.000278,2]
[390709226,1760125833490,-500.0,0.000278,2]
[390709228,1760125833499,-1000.0,0.000278,2]
[390709230,1760125833508,-500.0,0.000278,2]
[390709232,1760125833518,-1000.0,0.000278,2]
[390709234,1760125833527,-500.0,0.000278,2]
[390709236,1760125833536,-870.24847633,0.000278,2]
[390709238,1760125833545,-500.0,0.000278,2]
[390709240,1760125833555,-18603.8837,0.000278,2]
[390709242,1760125833564,-243.0,0.00027979,2]
[390709243,1760125833573,-2000.0,0.00028,4]
[390709245,1760125833583,-500.0,0.00028108,60]
[390709247,1760125833592,-4276.2,0.00028109,10]
[390709249,1760125833601,-500.0,0.00028118,60]
[390709251,1760125833610,-500.0,0.00028118,60]
[390709253,1760125833620,-162.10147567,0.00028119,2]
[390709255,1760125833630,-37734.32799044,0.00028119,2]
[390709257,1760125833639,-243.0,0.00028122,2]
[390709259,1760125833648,-500.0,0.00028208,2]
[390709261,1760125833658,-154.68155529,0.00028208,2]
[390709263,1760125833668,-265.6080712,0.00028208,2]
[390709265,1760125833678,-444.59866567,0.00028208,2]
[390709267,1760125833687,-153.81302406,0.00028208,2]
[390709269,1760125833696,-579.5001741,0.00028208,2]
[390709271,1760125833705,-122449.73011336,0.00028209,2]
[390709388,1760125838344,-526.02426037,0.0002206,2]
[390709390,1760125838354,-703.99564171,0.00028209,2]
[390709573,1760125840251,-121820.6418312,0.00028209,2]
[390709580,1760125840305,-58536.5835825,0.00028209,2]
[390709583,1760125840316,-256205.22930918,0.00028209,2]
[390709585,1760125840327,-6924.39539475,0.00028209,2]
[390709772,1760125843200,-3563.5,0.00028199,10]
[390709775,1760125843390,-263491.0831803,0.00028209,2]
[390709776,1760125843406,-30526.95591534,0.00028209,2]
[390709777,1760125843427,-6852.00640326,0.00028209,2]
[390709778,1760125843437,-600.0,0.00028214,7]
[390709779,1760125843446,-500.0,0.00028273,5]
[390709780,1760125843455,-500.0,0.00028273,5]
[390709781,1760125843465,-577.75616608,0.00028273,5]
[390709782,1760125843474,-500.0,0.00028273,5]
[390709783,1760125843484,-163.34872747,0.00028305,2]
[390709784,1760125843494,-800.0,0.00028314,7]
[390709785,1760125843503,-162.10147563,0.00028338,2]
[390709786,1760125843512,-6229.8270531,0.00028338,2]
[390709787,1760125843522,-155.70483757,0.00028348,2]
[390709788,1760125843532,-3000.0,0.00028348,2]
[390709789,1760125843541,-19292.2273969,0.00028348,2]
[390709790,1760125843550,-500.0,0.0002841,5]
[390709791,1760125843560,-500.0,0.0002841,5]
[390709792,1760125843569,-526.1007203,0.00028438,30]
[390709793,1760125843578,-993.74885779,0.00028519,2]
[390709794,1760125843590,-315.71799341,0.00028519,2]
[390709795,1760125843600,-500.0,0.0002855,20]
[390709796,1760125843609,-162.10147563,0.00028557,2]
[390709797,1760125843618,-115.18053096,0.00028566,2]
[390709798,1760125843630,-519.63803315,0.00028566,2]
[390709800,1760125843640,-500.000991,0.00028566,2]
[390709866,1760125846439,-2599.35881792,0.00028566,2]
[390709867,1760125846451,-3261.44,0.00028566,2]
[390709869,1760125846492,-19926.51161105,0.00028566,2]
[390709870,1760125846503,-10812.19800634,0.00028566,2]
[390709871,1760125846514,-300.0,0.000286,2]
[390709872,1760125846523,-300.0,0.000286,2]
[390709873,1760125846532,-300.0,0.000286,2]
[390709874,1760125846542,-2805.75,0.0002864,2]
[390709875,1760125846551,-3151.0,0.0002871,7]
[390709876,1760125846560,-378.3000009,0.0002875,5]
[390709877,1760125846569,-1000.0,0.00028767,30]
[390709878,1760125846579,-2007.0,0.00028767,2]
[390709879,1760125846588,-162.10147563,0.00028776,2]
[390709880,1760125846598,-2819.74286723,0.000288,7]
[390709881,1760125846608,-500.0,0.00028821,5]
[390709882,1760125846617,-376.73513415,0.00028821,5]
[390709883,1760125846627,-1000.0,0.00028821,5]
[390709884,1760125846636,-200.0,0.0002884,120]
[390709885,1760125846646,-4563.48437755,0.00028896,2]
[390709886,1760125846655,-151.0,0.00028929,10]
[390709888,1760125846665,-151.0,0.00028929,10]
[390709890,1760125846674,-151.0,0.00028929,10]
[390709892,1760125846683,-151.0,0.00028929,10]
[390709894,1760125846693,-199.38589367,0.00028984,10]
[390709895,1760125846702,-151.0,0.00028984,10]
[390709896,1760125846714,-198.0,0.00028984,10]
[390709898,1760125846723,-6229.8270531,0.00028995,2]
[390709900,1760125846731,-162.10147563,0.00028995,2]
[390709902,1760125846741,-2000.0,0.00029,2]
[390709904,1760125846751,-350.0,0.00029,10]
[390709906,1760125846759,-1050.27,0.00029,2]
[390709908,1760125846769,-28736.67362213,0.00029005,3]
[390709910,1760125846778,-37734.32799042,0.00029012,2]
[390709912,1760125846786,-151.0,0.00029039,10]
[390709914,1760125846796,-243.0,0.00029064,2]
[390709916,1760125846806,-6229.8270531,0.00029069,2]
[390709918,1760125846815,-341.74344052,0.00029073,5]
[390709920,1760125846824,-5991.90770922,0.0002908,2]
[390709922,1760125846835,-9738.78606386,0.0002908,2]
[390710633,1760126945304,657.382985,0.00013699,2]
[390710649,1760127032523,-1236.45718998,0.0001752,10]
[390710650,1760127032534,-305.57180953,0.0001752,10]
[390710651,1760127032631,-355.59869616,0.0001752,10]
[390710698,1760127038397,-3102.37230433,0.0001752,10]
[390710699,1760127038407,-150.0,0.00018239,2]
[390710700,1760127038417,-172.5,0.00018839,2]
[390710701,1760127038432,-342.64,0.00019002,2]
[390710705,1760127038636,-200.0,0.00019002,2]
[390710706,1760127038659,-195.0,0.00019439,2]
[390710707,1760127038668,-657.382985,0.00020187,2]
[390710708,1760127038678,-685.28,0.00020729,2]
[390710709,1760127038689,-526.02426037,0.00020737,2]
[390710710,1760127038700,-619.12786573,0.000216,5]
[390710711,1760127038710,-1027.92,0.00022456,2]
[390710712,1760127038719,-160.0,0.00023763,2]
[390710713,1760127038729,-160.0,0.00023763,2]
[390710714,1760127038738,-298.03512572,0.00023763,2]
[390710715,1760127038747,-629.61548949,0.00024,2]
[390710716,1760127038766,-3598.62136607,0.00018057,2]
[390710717,1760127038777,-1401.37863393,0.00018057,2]
[390710718,1760127038786,-2370.38451051,0.00024,2]
[390710719,1760127038796,-3000.0,0.0002401,2]
[390710720,1760127038804,-1595.91176256,0.0002402,2]
[390710721,1760127038825,-1404.08823744,0.0002402,2]
[390710722,1760127038834,-743.78327791,0.0002403,2]
[390710758,1760127040525,-507.34145989,0.0002403,2]
[390710759,1760127040536,-801.32313001,0.0002403,2]
[390710766,1760127040591,-947.55213219,0.0002403,2]
[390710768,1760127040600,-3000.0,0.0002404,2]
[390710769,1760127040609,-3000.0,0.0002405,2]
[390710771,1760127040618,-638.29065846,0.0002406,2]
[390710774,1760127040630,-2361.70934154,0.0002406,2]
[390710776,1760127040639,-951.82180069,0.0002407,2]
[390710802,1760127043567,-2048.17819931,0.0002407,2]
[390710803,1760127043577,-3000.0,0.0002408,2]
[390710804,1760127043586,-3000.0,0.0002409,2]
[390710807,1760127043756,-3000.0,0.000241,2]
[390710808,1760127043769,-3000.0,0.0002411,2]
[390710809,1760127043778,-423.056,0.00024115,6]
[390710810,1760127043787,-2342.23212864,0.0002412,2]
[390710811,1760127043799,-657.76787136,0.0002412,2]
[390710812,1760127043808,-1370.57,0.00024184,2]
[390710813,1760127043817,-298.03512572,0.00024953,10]
[390710814,1760127043826,-160.0,0.00024953,10]
[390710815,1760127043835,-1713.21,0.00025911,2]
[390710816,1760127043845,-600.0,0.00026122,2]
[390710817,1760127043854,-2041.4086641,0.00026257,2]
[390710818,1760127043863,-508.65513479,0.00026676,2]
[390710819,1760127043874,-148.72785021,0.00026676,2]
[390710820,1760127043883,-600.0,0.00027218,2]
[390710821,1760127043892,-2557.43039393,0.00027331,2]
[390710822,1760127043901,-500.0,0.00027397,60]
[390710823,1760127043910,-500.0,0.00027397,60]
[390710824,1760127043919,-149.92423244,0.00027397,60]
[390710825,1760127043938,-350.07576756,0.00027397,60]
[390710826,1760127043948,-70.65771797,0.00027397,2]
[390710827,1760127044024,-429.34228203,0.00027397,2]
[390710828,1760127044034,-980.0,0.00027452,2]
[390710829,1760127044043,-178.87,0.00027452,2]
[390710830,1760127044053,-394.550624,0.00027479,30]
[390710831,1760127044063,-789.5280749,0.00027479,30]
[390710832,1760127044072,-548.0,0.00027637,7]
[390710833,1760127044081,-2055.85,0.00027639,2]
[390710834,1760127044091,-1176.5771134,0.00027753,30]
[390710835,1760127044100,-297.8284942,0.00027753,30]
[390710836,1760127044109,-379.3851482,0.00027753,30]
[390710837,1760127044118,-1200.6512597,0.00027753,30]
[390710838,1760127044127,-166.1894609,0.00027753,30]
[390710839,1760127044136,-321.7216683,0.00027753,30]
[390710840,1760127044145,-153.0,0.00027753,30]
[390710841,1760127044155,-297.8284942,0.00027753,30]
[390710842,1760127044164,-169.5660633,0.00027753,30]
[390710843,1760127044173,-153.0,0.00027753,30]
[390710844,1760127044183,-297.8284942,0.00027753,30]
[390710845,1760127044193,-162.8446322,0.00027753,30]
[390710846,1760127044203,-189.6925741,0.00027753,30]
[390710847,1760127044212,-153.0,0.00027753,30]
[390710848,1760127044221,-298.03512572,0.00028,10]
[390710849,1760127044230,-600.0,0.00028314,7]
[390710850,1760127044240,-411.0,0.00028382,2]
[390710851,1760127044249,-411.0,0.00028412,7]
[390710852,1760127044258,-2976.82,0.0002847,8]
[390710853,1760127044267,-982.1001384,0.00028519,2]
[390710854,1760127044276,-500.0,0.0002853,5]
[390710855,1760127044285,-500.0,0.0002853,5]
[390710856,1760127044294,-500.0,0.0002853,20]
[390710857,1760127044303,-500.0,0.0002855,5]
[390710858,1760127044312,-500.0,0.0002855,5]
[390710859,1760127044321,-500.0,0.0002855,20]
[390710860,1760127044331,-500.0,0.0002855,5]
[390710861,1760127044341,-425.79035215,0.0002855,20]
[390710899,1760127046532,-5000.0,0.0002827,2]
[390710900,1760127046542,-74.20964785,0.0002855,20]
[390710901,1760127046552,-500.0,0.0002855,5]
[390710902,1760127046562,-168.0,0.00028556,2]
[390710903,1760127046575,-500.0,0.00028575,60]
[390710904,1760127046593,-150.91,0.00028575,7]
[390710905,1760127046607,-297.8284942,0.00028575,30]
[390710906,1760127046619,-162.8446322,0.00028575,30]
[390710907,1760127046631,-162.8446322,0.00028575,30]
[390710908,1760127046644,-189.6925741,0.00028575,30]
[390710909,1760127046657,-297.8284942,0.00028575,30]
[390710910,1760127046670,-153.0,0.00028575,30]
[390710911,1760127046684,-297.8284942,0.00028575,30]
[390710912,1760127046698,-162.8446322,0.00028575,30]
[390710913,1760127046711,-295.2217322,0.00028575,30]
[390710914,1760127046725,-162.8446322,0.00028575,30]
[390710915,1760127046737,-189.4849051,0.00028575,30]
[390710916,1760127046750,-153.0,0.00028575,30]
[390710917,1760127046762,-162.8446322,0.00028575,30]
[390710918,1760127046774,-162.8446322,0.00028575,30]
[390710919,1760127046787,-153.0,0.00028575,30]
[390710920,1760127046800,-162.8446322,0.00028575,30]
[390710921,1760127046812,-153.0,0.00028575,30]
[390710922,1760127046822,-162.8446322,0.00028575,30]
[390710923,1760127046835,-159.9173406,0.00028575,30]
[390710924,1760127046847,-802.46905654,0.00028772,2]
[390710925,1760127046860,-1048.0021162,0.00028817,2]
[390710926,1760127046872,-411.0,0.00028846,2]
[390710927,1760127046884,-150.91,0.00028849,7]
[390710928,1760127046898,-411.0,0.0002886,2]
[390710929,1760127046912,-1811.87,0.00028882,10]
[390710930,1760127046925,-2828.93,0.00028882,10]
[390710931,1760127046938,-2357.44,0.00028882,10]
[390710932,1760127046948,-311.21906597,0.00028891,2]
[390710933,1760127046960,-535.92564984,0.00028891,2]
[390710934,1760127046972,-2728.60490333,0.00028892,2]
[390711034,1760128216581,-3300.0,0.00018211,10]
[390711065,1760128232909,-670.9020678,0.00018029,10]
[390711067,1760128232920,-993.39393509,0.00018029,10]
[390711069,1760128232932,-3335.70399711,0.00018029,10]
[390711071,1760128232941,-1700.0,0.00018211,10]
[390711073,1760128232951,-1200.0,0.00018394,2]
[390711075,1760128232962,-200.0,0.00018394,2]
[390711077,1760128232972,-300.0,0.00018766,2]